bitfinex-derivatives/quotes_BTCF0:USTF0_20250930
["timestamp","ask_amount","ask_price","bid_price","bid_amount"]
[1759250855403,1.77178536,112920.0,112910.0,0.047331]
[1759250856104,4.38610536,112920.0,112910.0,0.047331]
[1759250856406,4.80802242,112920.0,112910.0,0.047331]
[1759250857207,4.81743352,112920.0,112910.0,0.047331]
[1759250857509,2.20311352,112920.0,112910.0,0.11098345]
[1759250857705,4.81747352,112920.0,112910.0,0.11098345]
[1759250858201,1.78223528,112920.0,112910.0,0.11098345]
[1759250858413,4.81747352,112920.0,112910.0,0.11098345]
[1759250858705,4.81747352,112920.0,112910.0,0.047331]
[1759250858706,4.81751352,112920.0,112910.0,0.047331]
[1759250859305,4.80311518,112920.0,112910.0,0.0004]
[1759250859507,0.0885634,112900.0,112890.0,0.12722639]
[1759250859806,3.14265238,112900.0,112890.0,0.20361639]
[1759250860007,3.58517238,112900.0,112890.0,0.20361639]
[1759250860306,3.58522285,112900.0,112890.0,0.20361639]
[1759250860503,4.42697933,112900.0,112890.0,0.20361639]
[1759250860703,4.49779597,112900.0,112890.0,0.20281639]
[1759250861006,4.49779597,112900.0,112890.0,0.20321639]
[1759250861308,4.07691773,112900.0,112890.0,0.20321639]
[1759250861604,4.49779597,112900.0,112890.0,0.20321639]
[1759250861805,1.46151773,112900.0,112890.0,0.20321639]
[1759250862008,4.07671773,112900.0,112890.0,0.12364]
[1759250862709,1.46151773,112900.0,112890.0,0.12364]
[1759250863005,3.16394461,112900.0,112890.0,0.52364]
[1759250863206,4.00570109,112900.0,112890.0,0.52364]
[1759250863606,1.39070109,112900.0,112890.0,0.52364]
[1759250863806,4.00570109,112900.0,112890.0,0.52364]
[1759250864005,4.00586109,112900.0,112890.0,0.52364]
[1759250864306,1.39070109,112900.0,112890.0,0.52364]
[1759250864503,4.00582109,112900.0,112890.0,0.52364]
[1759250864801,4.00582109,112900.0,112890.0,0.94451824]
[1759250864802,2.32382285,112900.0,112890.0,0.94451824]
[1759250865007,1.81438121,112900.0,112890.0,1.11266583]
[1759250865307,3.04097894,112900.0,112890.0,1.14461952]
[1759250865508,3.05394678,112900.0,112890.0,1.14461952]
[1759250865716,3.14251018,112900.0,112890.0,1.14461952]
[1759250865901,0.52731018,112900.0,112890.0,1.14461952]
[1759250866209,3.14239018,112900.0,112890.0,0.72374128]
[1759250866402,3.14239018,112900.0,112890.0,1.14461952]
[1759250867206,3.14291018,112900.0,112890.0,1.14461952]
[1759250867405,0.52731018,112900.0,112890.0,1.14461952]
[1759250867606,3.14287018,112900.0,112890.0,1.14461952]
[1759250868308,3.05430678,112900.0,112890.0,1.22427211]
[1759250868509,3.05430678,112900.0,112890.0,1.11274203]
[1759250869109,2.63342854,112900.0,112890.0,1.11274203]
[1759250869305,3.05430678,112900.0,112890.0,1.11274203]
[1759250869807,3.14287018,112900.0,112890.0,1.11274203]
[1759250870608,3.47518502,112900.0,112890.0,1.11274203]
[1759250871009,3.05430678,112900.0,112890.0,1.11274203]
[1759250871216,0.43874678,112900.0,112890.0,1.11274203]
[1759250871411,3.05358678,112900.0,112890.0,1.11274203]
[1759250874815,3.05358678,112900.0,112890.0,1.03308944]
[1759250875020,3.05358678,112900.0,112890.0,1.14461952]
[1759250875216,3.042955,112900.0,112890.0,1.14461952]
[1759250876015,3.042955,112900.0,112890.0,0.72374128]
[1759250876218,3.042955,112900.0,112890.0,1.14461952]
[1759250876612,3.042955,112900.0,112890.0,1.03308944]
[1759250877113,3.042955,112900.0,112890.0,1.11275195]
[1759250879117,3.02855741,112900.0,112890.0,1.11275195]
[1759250879318,3.04630612,112900.0,112890.0,1.11275195]
[1759250881023,3.04630612,112900.0,112890.0,1.03308944]
[1759250881422,3.46718436,112900.0,112890.0,1.03308944]
[1759250881616,3.04630612,112900.0,112890.0,1.1127618]
[1759250882019,3.46718436,112900.0,112890.0,1.1127618]
[1759250882618,3.55574486,112900.0,112890.0,1.1127618]
[1759250883024,3.46718436,112900.0,112890.0,0.29188356]
[1759250883623,3.46718436,112900.0,112890.0,0.7127618]
[1759250884623,0.85950519,112900.0,112890.0,0.7127618]
[1759250885116,3.05310695,112900.0,112890.0,0.7127618]
[1759250886427,3.47398519,112900.0,112890.0,0.7127618]
[1759250886620,3.05310695,112900.0,112890.0,0.7127618]
[1759250886820,3.05346695,112900.0,112890.0,0.7127618]
[1759250887114,0.43862695,112900.0,112890.0,0.7127618]
[1759250887318,3.05338695,112900.0,112890.0,0.63308944]
[1759250887526,3.05338695,112900.0,112890.0,0.71276052]
[1759250887828,0.43862695,112900.0,112890.0,0.63308944]
[1759250888027,3.05338695,112900.0,112890.0,0.63308944]
[1759250889131,3.03898961,112900.0,112890.0,0.63308944]
[1759250889324,0.42422961,112900.0,112890.0,0.63308944]
[1759250889527,3.03870961,112900.0,112890.0,0.63308944]
[1759250891120,2.61783137,112900.0,112890.0,0.63308944]
[1759250891435,3.03870961,112900.0,112890.0,0.74461952]
[1759250892321,3.12727011,112900.0,112890.0,0.74461952]
[1759250892529,3.54814835,112900.0,112890.0,0.12364]
[1759250892726,3.54814835,112900.0,112890.0,0.63308654]
[1759250893031,3.53751611,112900.0,112890.0,0.12364]
[1759250893226,3.55552854,112900.0,112890.0,0.12364]
[1759250893533,3.99804854,112900.0,112890.0,0.12694115]
[1759250893718,3.99804854,112900.0,112890.0,0.12694267]
[1759250894027,4.39804854,112900.0,112890.0,0.12654267]
[1759250894423,4.39804854,112900.0,112890.0,0.12694267]
[1759250895021,4.39804854,112900.0,112890.0,0.20514267]
[1759250895224,4.39804854,112900.0,112890.0,0.20474267]
[1759250895425,4.40532941,112900.0,112890.0,0.20514267]
[1759250896035,4.40532941,112900.0,112890.0,0.12694267]
[1759250896235,4.40532941,112900.0,112890.0,0.20514267]
[1759250897124,1.79084941,112900.0,112890.0,0.20616267]
[1759250897329,4.40536941,112900.0,112890.0,0.20616267]
[1759250899241,0.93469386,112900.0,112890.0,0.20616267]
[1759250899538,3.54921386,112900.0,112890.0,0.20616267]
[1759250899738,4.39097034,112900.0,112890.0,0.20616267]
[1759250900138,4.40540981,112900.0,112890.0,0.20616267]
[1759250900734,1.79084981,112900.0,112890.0,0.20616267]
[1759250901039,1.79084981,112900.0,112890.0,0.71560961]
[1759250901040,2.23545067,112900.0,112890.0,0.71560961]
[1759250901335,4.00544981,112900.0,112890.0,0.04725]
[1759250901534,1.39084981,112900.0,112890.0,0.12126]
[1759250901740,1.39084981,112900.0,112890.0,0.12086]
[1759250902044,4.00544981,112900.0,112890.0,0.12126]
[1759250902238,1.39084981,112900.0,112890.0,0.12126]
[1759250902436,4.00544981,112900.0,112890.0,0.12126]
[1759250903441,4.00544981,112900.0,112890.0,0.20091302]
[1759250903940,3.9948171,112900.0,112890.0,0.20091302]
[1759250904242,3.9948171,112900.0,112890.0,0.12126]
[1759250905845,3.9948171,112900.0,112890.0,0.20093155]
[1759250907944,3.9948571,112900.0,112890.0,0.20093155]
[1759250909143,3.98045826,112900.0,112890.0,0.20093155]
[1759250909339,3.99852265,112900.0,112890.0,0.20093155]
[1759250912844,1.38388265,112900.0,112890.0,0.20093155]
[1759250913046,3.99848265,112900.0,112890.0,0.77410775]
[1759250913342,3.15672617,112900.0,112890.0,0.27355796]
[1759250913646,3.99848265,112900.0,112890.0,0.18498926]
[1759250915044,3.99848265,112900.0,112890.0,0.11097926]
[1759250915246,3.99848265,112900.0,112890.0,0.11057926]
[1759250915448,3.99848265,112900.0,112890.0,0.11097926]
[1759250915643,3.99848265,112900.0,112890.0,0.18498926]
[1759250918248,3.57760306,112900.0,112890.0,0.18498926]
[1759250920152,0.96300306,112900.0,112890.0,0.18498926]
[1759250920352,3.57760306,112900.0,112890.0,0.18498926]
[1759250920653,3.15672617,112900.0,112890.0,0.18498926]
[1759250920856,3.57760306,112900.0,112890.0,0.18498926]
[1759250921553,0.96300306,112900.0,112890.0,0.18498926]
[1759250921754,3.57760306,112900.0,112890.0,0.18498926]
[1759250922452,3.57756306,112900.0,112890.0,0.18498926]
[1759250924441,0.96300306,112900.0,112890.0,0.18498926]
[1759250924642,3.99843995,112900.0,112890.0,0.11097926]
[1759250925045,4.39843995,112900.0,112890.0,0.11057926]
[1759250925246,4.38404048,112900.0,112890.0,0.04725]
[1759250925450,4.38404048,112900.0,112890.0,0.11100224]
[1759250925641,4.38404048,112900.0,112890.0,0.11060224]
[1759250925949,4.38404048,112900.0,112890.0,0.11100224]
[1759250926154,4.38404048,112900.0,112890.0,0.06375224]
[1759250926343,0.0885687,112890.0,112880.0,0.11037198]
[1759250926541,1.37284248,112890.0,112880.0,0.04583]
[1759250926949,1.37284248,112890.0,112880.0,0.04623]
[1759250928348,3.98764248,112890.0,112880.0,0.04623]
[1759250929047,3.99674769,112890.0,112880.0,0.04623]
[1759250929249,3.99662769,112890.0,112880.0,0.04623]
[1759250931456,1.38194769,112890.0,112880.0,0.04623]
[1759250931754,3.99670769,112890.0,112880.0,0.04623]
[1759250933556,3.99670769,112890.0,112880.0,0.04583]
[1759250933857,3.99670769,112890.0,112880.0,0.04623]
[1759250934061,3.99670769,112890.0,112880.0,0.04583]
[1759250934357,4.39670769,112890.0,112880.0,0.04623]
[1759250934558,4.39670769,112890.0,112880.0,0.04583]
[1759250934857,4.39670769,112890.0,112880.0,0.04623]
[1759250935356,4.39678769,112890.0,112880.0,0.04623]
[1759250935854,1.78194769,112890.0,112880.0,0.04623]
[1759250936054,4.39678769,112890.0,112880.0,0.04623]
[1759250936257,4.39678769,112890.0,112880.0,0.1099221]
[1759250936759,1.78194769,112890.0,112880.0,0.1099221]
[1759250936958,4.39678769,112890.0,112880.0,0.1099221]
[1759250937153,1.78194769,112890.0,112880.0,0.1099221]
[1759250937355,4.39678769,112890.0,112880.0,0.1099221]
[1759250938263,4.39682769,112890.0,112880.0,0.1099221]
[1759250939059,4.39682769,112890.0,112880.0,0.1848521]
[1759250939853,4.39682769,112890.0,112880.0,0.1099221]
[1759250940657,4.38242595,112890.0,112880.0,0.1099221]
[1759250941147,4.38242595,112890.0,112880.0,0.0640921]
[1759250941552,0.8031765,112880.0,112870.0,0.04583]
[1759250941753,2.08745028,112880.0,112870.0,0.04583]
[1759250942362,4.70241028,112880.0,112870.0,0.04623]
[1759250943265,4.70245028,112880.0,112870.0,0.12116]
[1759250943563,4.70245028,112880.0,112870.0,0.04623]
[1759250943954,4.28157339,112880.0,112870.0,0.12116]
[1759250944773,1.2456965,112880.0,112870.0,0.12116]
[1759250945069,4.01597339,112880.0,112870.0,0.12116]
[1759250945368,1.40097339,112880.0,112870.0,0.12116]
[1759250945564,4.01597339,112880.0,112870.0,0.12116]
[1759250945765,4.08767396,112880.0,112870.0,0.12116]
[1759250946768,1.47267396,112880.0,112870.0,0.12116]
[1759250947170,4.08771396,112880.0,112870.0,0.20083155]
[1759250947363,1.47267396,112880.0,112870.0,0.12116]
[1759250947568,4.08771396,112880.0,112870.0,0.12116]
[1759250948069,1.47267396,112880.0,112870.0,0.12116]
[1759250948562,3.26967396,112880.0,112870.0,0.12116]
[1759250948766,4.08771396,112880.0,112870.0,0.12116]
[1759250949963,1.47267396,112880.0,112870.0,0.12116]
[1759250950164,4.08775396,112880.0,112870.0,0.52116]
[1759250950367,4.01605339,112880.0,112870.0,0.52116]
[1759250950764,0.9800965,112880.0,112870.0,0.52116]
[1759250950967,2.21791689,112880.0,112870.0,0.68941585]
[1759250951166,3.12453339,112880.0,112870.0,0.68941585]
[1759250951666,0.42087689,112890.0,112880.0,0.2082865]
[1759250951871,3.35383689,112890.0,112880.0,0.28793148]
[1759250952165,2.91131689,112890.0,112880.0,0.28793148]
[1759250953072,2.49044,112890.0,112880.0,0.28793148]
[1759250953274,2.91131689,112890.0,112880.0,0.28793148]
[1759250954165,0.01806439,112900.0,112890.0,0.2082786]
[1759250954369,3.49642128,112900.0,112890.0,0.27199751]
[1759250954574,3.49642128,112900.0,112890.0,0.2082786]
[1759250954770,3.58498208,112900.0,112890.0,0.2082786]
[1759250955176,3.58498208,112900.0,112890.0,0.27199966]
[1759250957275,3.49642128,112900.0,112890.0,0.27199966]
[1759250957871,3.58498208,112900.0,112890.0,0.27199966]
[1759250958176,3.49642128,112900.0,112890.0,0.27199966]
[1759250958770,0.88146128,112900.0,112890.0,0.27199966]
[1759250958982,3.14234208,112900.0,112890.0,0.67199966]
[1759250959374,3.05378128,112900.0,112890.0,0.67199966]
[1759250960778,3.05378128,112900.0,112890.0,0.68110612]
[1759250961176,3.14234208,112900.0,112890.0,0.68110612]
[1759250962580,3.1416533,112900.0,112890.0,0.68110612]
[1759250963281,0.16102471,112920.0,112910.0,0.2126329]
[1759250963479,3.12414619,112920.0,112910.0,0.2126329]
[1759250963673,3.56666619,112920.0,112910.0,0.12408]
[1759250964583,3.58469586,112920.0,112910.0,0.12408]
[1759250964782,4.00557275,112920.0,112910.0,0.12408]
[1759250966187,4.00559276,112920.0,112910.0,0.12408]
[1759250966485,4.00559276,112920.0,112910.0,0.04757]
[1759250966684,4.00559276,112920.0,112910.0,0.12408]
[1759250967984,1.39087276,112920.0,112910.0,0.2126329]
[1759250968280,4.00539276,112920.0,112910.0,0.2126329]
[1759250968484,1.39087276,112920.0,112910.0,0.2126329]
[1759250968685,1.39087276,112920.0,112910.0,0.12408]
[1759250968686,4.00531276,112920.0,112910.0,0.12408]
[1759250970691,4.40531276,112920.0,112910.0,0.04757]
[1759250970983,0.0885529,112910.0,112900.0,0.04757]
[1759250971181,1.37282668,112910.0,112900.0,0.04837]
[1759250971377,0.95194979,112910.0,112900.0,0.04837]
[1759250971683,0.95194979,112910.0,112900.0,0.04757]
[1759250971884,0.95194979,112910.0,112900.0,0.04797]
[1759250972481,3.1454329,112910.0,112900.0,0.12448]
[1759250972788,3.56630979,112910.0,112900.0,0.2130407]
[1759250972990,0.95194979,112910.0,112900.0,0.2130407]
[1759250973191,3.56630979,112910.0,112900.0,0.2130407]
[1759250973594,0.95194979,112910.0,112900.0,0.2130407]
[1759250973788,3.1454329,112910.0,112900.0,0.2130407]
[1759250973995,3.56630979,112910.0,112900.0,0.2130407]
[1759250975598,0.95194979,112910.0,112900.0,0.2130407]
[1759250976102,3.56630979,112910.0,112900.0,0.2130407]
[1759250976501,0.95194979,112910.0,112900.0,0.2130407]
[1759250976702,3.56634979,112910.0,112900.0,0.2130407]
[1759250976903,3.56634979,112910.0,112900.0,0.12448]
[1759250977306,3.56634979,112910.0,112900.0,0.18820106]
[1759250977500,3.56634979,112910.0,112900.0,0.12448]
[1759250977799,3.56634979,112910.0,112900.0,0.04797]
[1759250978000,3.56634979,112910.0,112900.0,0.12448]
[1759250978205,3.56634979,112910.0,112900.0,0.18820106]
[1759250980205,3.98711784,112910.0,112900.0,0.18820106]
[1759250981004,3.98711784,112910.0,112900.0,0.11169106]
[1759250981204,3.98711784,112910.0,112900.0,0.04757]
[1759250981409,3.98711784,112910.0,112900.0,0.04797]
[1759250983206,3.54459784,112910.0,112900.0,0.04797]
[1759250983407,3.98711784,112910.0,112900.0,0.04797]
[1759250985003,1.37271784,112910.0,112900.0,0.11169106]
[1759250985305,1.37271784,112910.0,112900.0,0.18820106]
[1759250985507,3.98707784,112910.0,112900.0,0.18820106]
[1759250985910,2.3277129,112910.0,112900.0,0.18820106]
[1759250986109,3.55185711,112910.0,112900.0,0.2130407]
[1759250986303,3.55185711,112910.0,112900.0,0.29268568]
[1759250986503,3.54122475,112910.0,112900.0,0.29268568]
[1759250986909,3.54122475,112910.0,112900.0,0.20412498]
[1759250987107,0.92686475,112910.0,112900.0,0.20412498]
[1759250987504,3.54122475,112910.0,112900.0,0.20412498]
[1759250987703,3.96204722,112910.0,112900.0,0.20412498]
[1759250988512,1.34768722,112910.0,112900.0,0.20412498]
[1759250988710,3.96200722,112910.0,112900.0,0.20412498]
[1759250989108,1.34768722,112910.0,112900.0,0.20412498]
[1759250989408,3.96200722,112910.0,112900.0,0.20412498]
[1759250989606,3.47766247,112910.0,112900.0,0.29268568]
[1759250989804,0.52741735,112920.0,112910.0,0.04272]
[1759250990008,2.72087468,112920.0,112910.0,0.62862537]
[1759250990206,3.56251962,112920.0,112910.0,0.62862537]
[1759250990400,3.56251962,112920.0,112910.0,0.2078029]
[1759250991309,3.56251962,112920.0,112910.0,0.11925]
[1759250992113,3.56251962,112920.0,112910.0,0.2078029]
[1759250992310,2.72087468,112920.0,112910.0,0.2078029]
[1759250992611,3.82811962,112920.0,112910.0,0.2078029]
[1759250994014,1.21383962,112920.0,112910.0,0.2078029]
[1759250994312,3.82803962,112920.0,112910.0,0.21718747]
[1759250994810,1.79652,112920.0,112910.0,1.03800994]
[1759250995006,1.79652,112920.0,112910.0,1.11765492]
[1759250995202,3.03494247,112920.0,112910.0,1.03800994]
[1759250995412,3.03494247,112920.0,112910.0,1.14954002]
[1759250995713,3.03494247,112920.0,112910.0,1.22903846]
[1759250995903,3.03494247,112920.0,112910.0,1.11750838]
[1759250996107,3.02054803,112920.0,112910.0,1.11750838]
[1759250996507,3.5299163,112920.0,112910.0,0.29668591]
[1759250996715,3.5299163,112920.0,112910.0,0.21718747]
[1759250996914,3.5299163,112920.0,112910.0,0.12863457]
[1759250997312,3.5299163,112920.0,112910.0,0.28076161]
[1759250997514,3.4413705,112920.0,112910.0,0.28076161]
[1759250998010,3.5299162,112920.0,112910.0,0.28076161]
[1759251000711,3.45552494,112920.0,112910.0,0.28076161]
[1759251000916,3.45552494,112920.0,112910.0,0.70158408]
[1759251001417,3.54407064,112920.0,112910.0,0.28076161]
[1759251002317,2.7024257,112920.0,112910.0,0.28076161]
[1759251002518,3.54407064,112920.0,112910.0,0.28076161]
[1759251003724,3.4728032,112920.0,112910.0,0.28076161]
[1759251004617,3.7384032,112920.0,112910.0,0.28076161]
[1759251005123,3.7383632,112920.0,112910.0,0.28076161]
[1759251005319,0.2656,112920.0,112910.0,0.70158408]
[1759251005519,2.87932,112920.0,112910.0,0.63801054]
[1759251005826,2.87928,112920.0,112910.0,1.03801054]
[1759251006017,2.87928,112920.0,112910.0,1.11750898]
[1759251006323,2.87928,112920.0,112910.0,1.03801054]
[1759251006817,2.87924,112920.0,112910.0,1.03801054]
[1759251007018,2.89729336,112920.0,112910.0,0.61718807]
[1759251007219,2.89729336,112920.0,112910.0,1.03801054]
[1759251008029,3.31811583,112920.0,112910.0,1.03801054]
[1759251010229,0.28365336,112920.0,112910.0,1.03801054]
[1759251010434,0.24057542,112920.0,112910.0,1.53833145]
[1759251010727,1.05785542,112920.0,112910.0,0.69668651]
[1759251010918,1.05785542,112920.0,112910.0,1.11750898]
[1759251011930,1.05785542,112920.0,112910.0,1.53833145]
[1759251013427,0.81728,112920.0,112910.0,1.53833145]
[1759251013842,0.81728,112920.0,112910.0,1.11750898]
[1759251017134,2.21694247,112930.0,112920.0,0.2054757]
[1759251017336,3.03410247,112930.0,112920.0,0.62629817]
[1759251018134,3.12264027,112930.0,112920.0,0.70579661]
[1759251018337,3.56516027,112930.0,112920.0,0.12408844]
[1759251018530,3.56516027,112930.0,112920.0,0.04499]
[1759251018828,3.56516027,112930.0,112920.0,0.12008]
[1759251019035,4.38598274,112930.0,112920.0,0.10867292]
[1759251019229,4.38598274,112930.0,112920.0,0.10827292]
[1759251019434,4.38598274,112930.0,112920.0,0.10867292]
[1759251019634,4.38598274,112930.0,112920.0,0.06368292]
[1759251019835,4.38598274,112930.0,112920.0,0.10689292]
[1759251020136,4.38598274,112930.0,112920.0,0.10649292]
[1759251020333,4.38598274,112930.0,112920.0,0.06408292]
[1759251020532,4.38598274,112930.0,112920.0,0.06368292]
[1759251020733,4.38598274,112930.0,112920.0,0.10689292]
[1759251022835,1.77270274,112930.0,112920.0,0.10689292]
[1759251023028,4.38590274,112930.0,112920.0,0.10689292]
[1759251024028,2.19352521,112930.0,112920.0,0.10689292]
[1759251024334,4.38594274,112930.0,112920.0,0.10689292]
[1759251024540,1.77270274,112930.0,112920.0,0.10689292]
[1759251024739,4.38594274,112930.0,112920.0,0.10689292]
[1759251024937,4.38594274,112930.0,112920.0,0.06408292]
[1759251025442,4.80676521,112930.0,112920.0,0.0004]
[1759251025943,4.80676521,112930.0,112920.0,0.04321]
[1759251026143,2.19352521,112930.0,112920.0,0.04321]
[1759251026342,4.38594274,112930.0,112920.0,0.04321]
[1759251026537,1.77270274,112930.0,112920.0,0.04321]
[1759251026844,4.38598274,112930.0,112920.0,0.04321]
[1759251028038,1.77270274,112930.0,112920.0,0.04321]
[1759251028238,4.38598274,112930.0,112920.0,0.04321]
[1759251029243,1.77270274,112930.0,112920.0,0.04321]
[1759251029549,4.38602274,112930.0,112920.0,0.04321]
[1759251030337,1.77270274,112930.0,112920.0,0.04321]
[1759251030537,3.16898274,112930.0,112920.0,0.1183]
[1759251030744,3.98606274,112930.0,112920.0,0.1183]
[1759251031349,1.37270274,112930.0,112920.0,0.1183]
[1759251031643,3.98602274,112930.0,112920.0,0.1183]
[1759251032140,1.37270274,112930.0,112920.0,0.1183]
[1759251032345,3.98602274,112930.0,112920.0,0.1183]
[1759251033948,1.37270274,112930.0,112920.0,0.1183]
[1759251034241,3.98606274,112930.0,112920.0,0.1183]
[1759251034437,1.37270274,112930.0,112920.0,0.1183]
[1759251034639,3.98606274,112930.0,112920.0,0.1183]
[1759251034945,2.74820027,112930.0,112920.0,0.1183]
[1759251035147,0.95188027,112930.0,112920.0,0.1183]
[1759251035445,1.37270274,112930.0,112920.0,0.1183]
[1759251035638,3.98606274,112930.0,112920.0,0.1183]
[1759251036342,2.18974274,112930.0,112920.0,0.1183]
[1759251036541,3.98602274,112930.0,112920.0,0.1183]
[1759251039047,3.54350274,112930.0,112920.0,0.1183]
[1759251039347,3.98602274,112930.0,112920.0,0.1183]
[1759251040141,4.80684521,112930.0,112920.0,0.04321]
[1759251040338,4.38602274,112930.0,112920.0,0.04321]
[1759251040545,4.38602274,112930.0,112920.0,0.04281]
[1759251040546,3.98602274,112930.0,112920.0,0.04281]
[1759251040746,3.98602274,112930.0,112920.0,0.04321]
[1759251042348,3.9858242,112930.0,112920.0,0.04321]
[1759251043349,3.9858242,112930.0,112920.0,0.1183]
[1759251043550,1.3725042,112930.0,112920.0,0.1183]
[1759251043751,3.9857442,112930.0,112920.0,0.1183]
[1759251044051,3.9857442,112930.0,112920.0,0.04321]
[1759251044961,3.9857442,112930.0,112920.0,0.18198292]
[1759251045461,1.3725042,112930.0,112920.0,0.18198292]
[1759251045754,3.9857042,112930.0,112920.0,0.18198292]
[1759251045956,3.564981,112930.0,112920.0,0.18198292]
[1759251046356,4.00318216,112930.0,112920.0,0.18198292]
[1759251049158,4.00318216,112930.0,112920.0,0.10689292]
[1759251051456,4.40318216,112930.0,112920.0,0.04321]
[1759251051962,4.40318216,112930.0,112920.0,0.0004]
[1759251052362,4.40318216,112930.0,112920.0,0.04415]
[1759251052558,1.78998216,112930.0,112920.0,0.04415]
[1759251052763,4.40310216,112930.0,112920.0,0.10783292]
[1759251052956,0.0885451,112920.0,112910.0,0.10647121]
[1759251053155,1.6381115,112920.0,112910.0,0.10647121]
[1759251053366,1.6381115,112920.0,112910.0,0.10687121]
[1759251053568,2.0381115,112920.0,112910.0,0.06415121]
[1759251054158,2.0381115,112920.0,112910.0,0.0004]
[1759251054765,0.07415466,112910.0,112900.0,0.12706844]
[1759251054965,3.55051786,112910.0,112900.0,0.04757]
[1759251055367,0.93739786,112910.0,112900.0,0.04797]
[1759251055562,0.93739786,112910.0,112900.0,0.1185]
[1759251055760,3.55055786,112910.0,112900.0,0.1185]
[1759251056158,0.51667466,112910.0,112900.0,0.1185]
[1759251056362,3.55055786,112910.0,112900.0,0.1185]
[1759251056561,1.00758492,112910.0,112900.0,0.1185]
[1759251056865,3.62074492,112910.0,112900.0,0.19799844]
[1759251057660,1.00758492,112910.0,112900.0,0.19799844]
[1759251057859,3.62078492,112910.0,112900.0,0.19799844]
[1759251058472,3.62078492,112910.0,112900.0,0.1185]
[1759251058669,1.00758492,112910.0,112900.0,0.1185]
[1759251058869,3.62082492,112910.0,112900.0,0.1185]
[1759251060576,1.00758492,112910.0,112900.0,0.1185]
[1759251060975,3.20014172,112910.0,112900.0,0.1185]
[1759251061169,3.62086492,112910.0,112900.0,0.1185]
[1759251061875,1.00758492,112910.0,112900.0,0.1185]
[1759251062269,3.62086492,112910.0,112900.0,0.1185]
[1759251062473,1.00758492,112910.0,112900.0,0.1185]
[1759251062673,3.62086492,112910.0,112900.0,0.1185]
[1759251063264,3.62086492,112910.0,112900.0,0.18222235]
[1759251063769,1.00758492,112910.0,112900.0,0.18222235]
[1759251064274,3.62086492,112910.0,112900.0,0.18222235]
[1759251064678,1.00758492,112910.0,112900.0,0.18222235]
[1759251065072,3.62086492,112910.0,112900.0,0.18222235]
[1759251068682,3.62086492,112910.0,112900.0,0.11169235]
[1759251069184,3.62086492,112910.0,112900.0,0.18222235]
[1759251069185,3.20014172,112910.0,112900.0,0.18222235]
[1759251069480,3.62086492,112910.0,112900.0,0.18222235]
[1759251071582,3.62086492,112910.0,112900.0,0.11169235]
[1759251072178,3.62086492,112910.0,112900.0,0.11129235]
[1759251072381,3.62086492,112910.0,112900.0,0.11169235]
[1759251073480,3.63021361,112910.0,112900.0,0.11169235]
[1759251075388,3.18769361,112910.0,112900.0,0.11169235]
[1759251075589,3.63021361,112910.0,112900.0,0.11169235]
[1759251075788,4.03021361,112910.0,112900.0,0.11169235]
[1759251076882,4.03021361,112910.0,112900.0,0.04797]
[1759251077283,4.03021361,112910.0,112900.0,0.11169235]
[1759251077483,4.03021361,112910.0,112900.0,0.04797]
[1759251078293,4.03021361,112910.0,112900.0,0.11169235]
[1759251079591,1.41693361,112910.0,112900.0,0.11169235]
[1759251079791,4.03009361,112910.0,112900.0,0.11169235]
[1759251079990,4.03009361,112910.0,112900.0,0.18248235]
[1759251080391,4.03009361,112910.0,112900.0,0.11169235]
[1759251081099,4.45081681,112910.0,112900.0,0.11169235]
[1759251081590,0.088561,112900.0,112890.0,0.10850235]
[1759251081789,1.62372725,112900.0,112890.0,0.10850235]
[1759251083405,4.23688725,112900.0,112890.0,0.17929235]
[1759251083891,1.62372725,112900.0,112890.0,0.17929235]
[1759251084201,4.23684725,112900.0,112890.0,0.04478]
[1759251084493,4.23688725,112900.0,112890.0,0.04478]
[1759251084794,4.23688725,112900.0,112890.0,0.17929455]
[1759251084999,1.20300405,112900.0,112890.0,0.17929455]
[1759251085195,3.81616405,112900.0,112890.0,0.17929455]
[1759251085698,1.20300405,112900.0,112890.0,0.17929455]
[1759251085998,3.81616405,112900.0,112890.0,0.17929455]
[1759251086499,3.81616405,112900.0,112890.0,0.11557]
[1759251087095,3.81612405,112900.0,112890.0,0.11557]
[1759251087499,0.78228085,112900.0,112890.0,0.11557]
[1759251087799,3.55052405,112900.0,112890.0,0.17928953]
[1759251089297,0.93740405,112900.0,112890.0,0.17928953]
[1759251089898,3.55056405,112900.0,112890.0,0.17928953]
[1759251090200,0.93740405,112900.0,112890.0,0.17928953]
[1759251090598,3.55052405,112900.0,112890.0,0.17928953]
[1759251091102,3.55052405,112900.0,112890.0,0.51557]
[1759251091103,0.51668085,112900.0,112890.0,0.51557]
[1759251091304,2.73412405,112900.0,112890.0,0.51557]
[1759251091502,3.10800405,112900.0,112890.0,0.59506844]
[1759251091702,3.10800405,112900.0,112890.0,0.51557]
[1759251091904,0.49488405,112900.0,112890.0,0.6041388]
[1759251092201,0.51290484,112910.0,112900.0,0.11335]
[1759251092504,3.12602484,112910.0,112900.0,0.17687545]
[1759251094193,2.70530164,112910.0,112900.0,0.17687545]
[1759251094400,3.12602484,112910.0,112900.0,0.17687545]
[1759251096398,0.51290484,112910.0,112900.0,0.17687545]
[1759251096699,3.12586484,112910.0,112900.0,0.17687545]
[1759251097406,2.70514164,112910.0,112900.0,0.17687545]
[1759251097601,3.12586484,112910.0,112900.0,0.17687545]
[1759251097906,3.12586484,112910.0,112900.0,0.18608446]
[1759251099307,3.12574484,112910.0,112900.0,0.18608446]
[1759251099505,2.70502164,112910.0,112900.0,0.18608446]
[1759251099903,3.12574484,112910.0,112900.0,0.18608446]
[1759251100497,2.70502164,112910.0,112900.0,0.27464546]
[1759251100701,3.12574484,112910.0,112900.0,0.27464546]
[1759251100902,3.12574484,112910.0,112900.0,0.18608446]
[1759251102510,3.39134484,112910.0,112900.0,0.18608446]
[1759251104207,3.39136829,112910.0,112900.0,0.18608446]
[1759251104408,3.39128829,112910.0,112900.0,0.18608446]
[1759251104710,3.83380829,112910.0,112900.0,0.18608446]
[1759251105809,3.83380829,112910.0,112900.0,0.12235901]
[1759251106512,1.22104829,112910.0,112900.0,0.12235901]
[1759251106710,3.83376829,112910.0,112900.0,0.12235901]
[1759251107013,0.7966786,112910.0,112900.0,0.12235901]
[1759251107215,3.83014525,112910.0,112900.0,0.12235901]
[1759251107615,1.21742525,112910.0,112900.0,0.12235901]
[1759251107816,3.83014525,112910.0,112900.0,0.12235901]
[1759251108715,3.83014525,112910.0,112900.0,0.18605832]
[1759251109620,3.4093986,112910.0,112900.0,0.18605832]
[1759251109922,3.83014525,112910.0,112900.0,0.18605832]
[1759251110816,3.83014525,112910.0,112900.0,0.12235901]
[1759251111516,3.56454525,112910.0,112900.0,0.12235901]
[1759251112107,3.56450525,112910.0,112900.0,0.12235901]
[1759251112312,3.55010763,112910.0,112900.0,0.12235901]
[1759251114019,0.93742763,112910.0,112900.0,0.12235901]
[1759251114216,3.55006763,112910.0,112900.0,0.12235901]